bitfinex-derivatives/quotes_ETHF0:USTF0_20250730
["timestamp","ask_amount","ask_price","bid_price","bid_amount"]
[1753915358446,0.486,3761.2,3761.1,1.6917]
[1753915358647,0.486,3761.6,3761.5,1.5043]
[1753915359248,0.486,3761.6,3761.5,1.6917]
[1753915360049,0.486,3761.6,3761.5,1.5043]
[1753915360249,1.8087,3761.6,3761.5,1.5043]
[1753915361546,18.82262,3762.1,3761.5,0.7806]
[1753915361848,1.8087,3761.9,3761.8,1.5043]
[1753915362044,1.8087,3761.9,3761.8,1.2992]
[1753915363555,1.8087,3761.9,3761.8,1.5043]
[1753915364057,2.34034,3761.9,3761.8,1.5043]
[1753915364446,1.8087,3761.9,3761.8,1.5043]
[1753915364659,1.8087,3761.9,3761.8,1.2992]
[1753915364959,1.8087,3761.9,3761.8,1.5043]
[1753915365155,1.8087,3761.9,3761.8,2.03595]
[1753915365656,1.8087,3761.9,3761.8,1.5043]
[1753915366058,2.34034,3761.9,3761.8,1.5043]
[1753915367162,1.8087,3761.9,3761.8,1.5043]
[1753915368258,0.486,3761.9,3761.8,1.5043]
[1753915368458,1.8087,3761.9,3761.8,1.5043]
[1753915369060,1.0176,3761.9,3761.8,1.5043]
[1753915369262,0.712,3761.9,3761.8,1.6917]
[1753915369461,0.712,3761.9,3761.8,1.5043]
[1753915369462,1.5031,3761.9,3761.8,1.5043]
[1753915369858,1.8087,3761.9,3761.8,1.5043]
[1753915370364,1.0176,3761.9,3761.8,1.6917]
[1753915370553,0.712,3761.9,3761.8,1.6917]
[1753915370754,0.712,3761.9,3761.6,1.46575465]
[1753915370954,1.3802,3761.7,3761.6,1.0793]
[1753915371158,1.8087,3761.7,3761.6,1.0793]
[1753915372165,1.8087,3761.7,3761.6,1.2992]
[1753915372356,0.95253018,3763.7,3762.0,0.7806]
[1753915372560,5.54071064,3764.5,3763.5,4.507]
[1753915372561,2.1884472,3763.6,3763.5,4.507]
[1753915372759,2.25699851,3763.6,3763.5,4.507]
[1753915372961,2.25699851,3763.6,3763.5,3.2078]
[1753915373667,2.25699851,3763.6,3763.5,3.4277]
[1753915373867,2.25699851,3763.6,3763.5,3.775]
[1753915374459,3.15099851,3763.6,3763.5,3.775]
[1753915374677,3.15099851,3763.6,3763.5,3.2078]
[1753915378663,2.3401,3763.6,3763.5,3.2078]
[1753915378864,1.898,3763.2,3763.1,3.461]
[1753915379065,1.898,3763.2,3763.1,4.6069]
[1753915379261,0.805,3763.2,3763.1,4.6069]
[1753915379464,0.2938,3763.2,3763.1,4.6069]
[1753915379966,0.7793,3763.7,3763.6,1.3991]
[1753915380162,1.69207,3763.9,3763.8,0.9313]
[1753915380367,1.98587,3763.9,3763.8,1.3991]
[1753915380564,1.33637,3763.9,3763.8,0.2532]
[1753915380765,2.42937,3763.9,3763.8,0.6211]
[1753915381166,1.898,3763.9,3763.8,1.3991]
[1753915382670,1.0731,3763.9,3763.8,1.3991]
[1753915384468,1.898,3763.9,3763.8,1.3991]
[1753915387571,0.4938,3763.9,3763.8,1.93047]
[1753915387874,0.4938,3763.9,3763.8,1.3991]
[1753915388063,0.53133,3764.1,3763.8,1.09477]
[1753915388373,0.805,3764.1,3764.0,1.3991]
[1753915388770,1.898,3764.1,3764.0,1.3991]
[1753915390073,0.38,3764.7,3764.6,0.53126]
[1753915390270,0.6738,3764.7,3764.6,7.02763745]
[1753915391275,1.8966,3764.7,3764.6,4.6069]
[1753915391769,0.38,3764.7,3764.6,6.49637745]
[1753915392166,0.6738,3764.7,3764.6,6.49637745]
[1753915392469,1.8966,3764.7,3764.6,6.49637745]
[1753915393176,2.278,3764.7,3764.6,6.49637745]
[1753915393377,0.38,3764.7,3764.6,6.49637745]
[1753915394071,0.6738,3764.7,3764.6,6.49637745]
[1753915394569,0.8738,3764.7,3764.6,6.49637745]
[1753915394871,1.185,3764.7,3764.6,6.49637745]
[1753915395576,1.8966,3764.7,3764.6,6.49637745]
[1753915395777,2.278,3764.7,3764.6,6.49637745]
[1753915395977,2.278,3764.7,3764.6,4.6069]
[1753915396776,1.8966,3764.7,3764.6,3.2078]
[1753915396980,2.278,3764.7,3764.6,3.2078]
[1753915398780,2.278,3764.7,3764.2,3.2078]
[1753915398781,1.4545,3764.3,3764.2,3.2078]
[1753915398974,1.898,3764.3,3764.2,3.2078]
[1753915399375,1.898,3764.3,3764.2,3.461]
[1753915400471,2.4293,3764.3,3764.2,3.2078]
[1753915400676,1.898,3764.3,3764.2,3.2078]
[1753915402587,2.04796,3763.9,3763.8,3.2078]
[1753915402777,2.42936,3763.9,3763.8,3.2078]
[1753915405281,0.7793,3763.4,3763.3,1.09484]
[1753915405683,1.5166,3763.4,3763.3,3.7712]
[1753915405885,1.5166,3763.4,3763.3,4.6069]
[1753915406282,1.898,3763.4,3763.3,4.6069]
[1753915409884,1.9029,3763.4,3763.3,3.8284]
[1753915410383,1.9029,3763.4,3763.3,3.2078]
[1753915410588,1.138,3763.0,3762.9,3.2078]
[1753915410788,2.40358,3763.0,3762.9,3.2078]
[1753915410988,2.40358,3763.0,3762.9,3.5752]
[1753915411187,2.40358,3763.0,3762.9,3.8324]
[1753915413992,1.28324,3762.6,3762.5,4.1228]
[1753915414189,2.40364,3762.6,3762.5,4.5905]
[1753915414391,1.8721,3762.6,3762.5,4.5905]
[1753915415497,1.4858,3762.6,3762.5,4.5905]
[1753915416596,1.2293,3762.6,3762.5,4.5905]
[1753915417194,1.76084,3762.6,3762.5,4.5905]
[1753915417399,1.2293,3762.6,3762.5,4.5905]
[1753915418695,0.4424,3763.2,3762.6,0.8351]
[1753915418995,0.82313,3763.4,3763.3,0.2904]
[1753915419292,2.01723,3763.4,3763.3,0.2572]
[1753915419496,2.40355,3763.2,3763.1,0.6246]
[1753915420094,2.40355,3763.2,3763.1,1.0923]
[1753915420495,2.40355,3763.2,3763.1,1.3827]
[1753915420995,1.2293,3763.2,3763.1,2.31501998]
[1753915421695,0.479,3763.2,3763.1,2.31501998]
[1753915423196,1.2293,3763.2,3763.1,2.31501998]
[1753915424498,1.76075,3763.2,3763.1,2.31501998]
[1753915426188,2.01725,3763.2,3763.1,2.31501998]
[1753915426393,2.40355,3763.2,3763.1,2.31501998]
[1753915426898,2.40355,3763.2,3763.1,0.6246]
[1753915427699,2.40355,3763.2,3763.1,1.0923]
[1753915428092,2.40355,3763.2,3763.1,1.3827]
[1753915428800,2.40358,3763.0,3762.9,3.5752]
[1753915429000,2.40358,3763.0,3762.9,3.8324]
[1753915429800,2.40358,3763.0,3762.9,4.5905]
[1753915431791,2.40358,3763.0,3762.9,3.2078]
[1753915431989,1.32856,3763.5,3762.7,0.3674]
[1753915431990,1.28321,3762.8,3762.7,0.6246]
[1753915432198,2.40361,3762.8,3762.7,0.6246]
[1753915432889,2.40361,3762.8,3762.7,1.0923]
[1753915433399,2.40361,3762.8,3762.7,1.3827]
[1753915434195,2.40364,3762.6,3762.5,4.5905]
[1753915439702,1.8721,3762.6,3762.5,4.5905]
[1753915440804,1.4858,3762.6,3762.5,4.5905]
[1753915441701,1.4858,3762.6,3762.5,3.2078]
[1753915441702,1.862,3762.6,3762.5,3.2078]
[1753915442006,1.8562,3762.2,3762.1,4.2677]
[1753915442510,2.3878,3762.2,3762.1,4.2677]
[1753915443203,2.3878,3762.2,3762.1,3.2078]
[1753915443908,3.32011998,3762.2,3762.1,3.2078]
[1753915445211,1.2235,3762.2,3762.1,4.5565]
[1753915445403,1.8562,3762.2,3762.1,4.5565]
[1753915449910,0.285,3762.2,3762.1,5.48881998]
[1753915450615,0.4825,3762.2,3762.1,5.48881998]
[1753915451717,0.285,3762.2,3762.1,5.48881998]
[1753915453109,0.4825,3762.2,3762.1,5.48881998]
[1753915454903,0.285,3762.2,3762.1,5.48881998]
[1753915455109,0.285,3762.6,3762.5,1.3477]
[1753915455307,0.94935225,3763.6,3763.0,0.4383]
[1753915455606,1.3285,3763.7,3763.4,1.3477]
[1753915455607,2.91305,3763.5,3763.4,1.3477]
[1753915455808,3.19805,3763.5,3763.4,0.6216]
[1753915456512,3.19805,3763.5,3763.4,1.0599]
[1753915456712,3.19805,3763.5,3763.4,1.3477]
[1753915459416,2.81955,3763.5,3763.4,1.3477]
[1753915459616,3.19805,3763.5,3763.4,1.3477]
[1753915461117,2.56535,3763.5,3763.4,1.3477]
[1753915461717,2.94385,3763.5,3763.4,1.3477]
[1753915461913,3.19805,3763.5,3763.4,1.3477]
[1753915463016,2.38761,3763.5,3763.4,1.3477]
[1753915463611,1.01391,3763.5,3763.4,1.3477]
[1753915463915,2.38761,3763.5,3763.4,1.3477]
[1753915465621,0.4825,3763.5,3763.4,1.3477]
[1753915465919,1.01391,3763.5,3763.4,1.3477]
[1753915466719,0.9136,3763.5,3763.4,1.3477]
[1753915466908,0.4825,3763.5,3763.4,1.3477]
[1753915467112,0.285,3763.7,3763.3,4.14011998]
[1753915467312,0.285,3764.0,3763.7,0.8212]
[1753915467510,0.285,3764.0,3763.9,1.3477]
[1753915467717,1.09508592,3764.0,3763.9,1.3477]
[1753915468216,1.2235,3764.0,3763.9,1.3477]
[1753915468416,1.8562,3764.0,3763.9,1.3477]
[1753915469417,1.4777,3764.0,3763.9,1.3477]
[1753915470216,1.2235,3764.0,3763.9,1.3477]
[1753915471222,0.4825,3764.0,3763.9,2.28001998]
[1753915471424,0.285,3764.0,3763.9,2.28001998]
[1753915471615,0.6781,3764.6,3763.9,1.45881998]
[1753915471919,0.2924,3764.3,3764.2,6.06291998]
[1753915472320,0.2924,3764.6,3764.5,1.92276]
[1753915472517,1.2154,3764.6,3764.5,1.3915]
[1753915474522,0.38,3764.7,3764.6,1.3915]
[1753915474823,1.1676,3764.7,3764.6,4.5993]
[1753915475018,1.5954,3764.7,3764.6,4.5993]
[1753915475823,1.9811,3764.7,3764.6,4.5993]
[1753915476419,1.1676,3764.7,3764.6,4.5993]
[1753915478027,1.5954,3764.7,3764.6,4.5993]
[1753915479124,3.16771998,3764.7,3764.6,3.2078]
[1753915481027,1.8554,3764.3,3764.2,3.2078]
[1753915481327,2.78771998,3764.3,3764.2,3.2078]
[1753915481524,1.8554,3764.3,3764.2,3.2078]
[1753915481725,1.8554,3764.3,3764.2,3.8351]
[1753915482125,1.8554,3764.3,3764.2,4.2947]
[1753915482825,1.2154,3764.3,3764.2,4.5993]
[1753915483420,1.8554,3764.3,3764.2,4.5993]
[1753915483918,1.8554,3764.3,3763.8,0.77406]
[1753915483919,0.461,3763.9,3763.8,0.77406]
[1753915484128,1.8554,3763.9,3763.8,1.92286]
[1753915486426,1.4697,3763.9,3763.8,1.92286]
[1753915486829,1.2154,3763.9,3763.8,1.92286]
[1753915487033,0.2924,3763.9,3763.8,1.92286]
[1753915487228,0.7876,3763.9,3763.8,1.92286]
[1753915487428,1.2154,3763.9,3763.8,1.92286]
[1753915487631,0.7876,3763.9,3763.8,1.92286]
[1753915487828,0.2924,3764.3,3763.6,4.14011998]
[1753915488037,0.2924,3764.3,3764.2,2.85512998]
[1753915489236,0.5867,3764.7,3764.6,1.07856]
[1753915489429,1.303,3764.7,3764.6,5.13056]
[1753915489630,1.5573,3764.7,3764.6,5.13056]
[1753915489831,1.943,3764.7,3764.6,5.13056]
[1753915490126,2.2354,3764.7,3764.6,5.13056]
[1753915490524,1.5954,3764.7,3764.6,5.13056]
[1753915491024,1.8497,3764.7,3764.6,5.13056]
[1753915491233,2.2354,3764.7,3764.6,5.13056]
[1753915492842,2.2354,3764.7,3764.6,3.2078]
[1753915493036,2.2354,3764.7,3764.6,5.13056]
[1753915493533,2.2354,3764.7,3764.6,4.5993]
[1753915493935,2.76664,3764.7,3764.6,3.2078]
[1753915495136,1.8554,3764.3,3764.2,0.774]
[1753915495730,1.8554,3764.3,3764.2,1.1586]
[1753915495930,1.8554,3764.3,3764.2,1.6182]
[1753915496126,1.8554,3764.3,3764.2,1.9228]
[1753915496534,0.38,3764.7,3764.6,1.3915]
[1753915496730,0.8752,3764.7,3764.6,5.53161998]
[1753915496932,1.5573,3764.7,3764.6,4.5993]
[1753915497133,2.2354,3764.7,3764.6,1.3915]
[1753915497327,0.7495,3763.6,3763.5,3.2078]
[1753915497540,0.7495,3763.1,3762.9,3.2078]
[1753915497726,1.42354362,3763.0,3762.9,4.5993]
[1753915497932,0.7876,3763.0,3762.9,4.5993]
[1753915498335,1.0419,3763.0,3762.9,4.5993]
[1753915498634,1.0419,3763.0,3762.9,4.1397]
[1753915498839,0.7876,3763.0,3762.9,4.5816]
[1753915499640,0.4991,3763.0,3762.9,4.5816]
[1753915499833,0.2924,3763.0,3762.9,4.5816]
[1753915500929,1.73741998,3763.0,3762.9,3.2078]
[1753915501132,2.80031998,3763.0,3762.9,3.2078]
[1753915502140,1.868,3763.0,3762.9,4.5411]
[1753915509045,0.4984,3763.0,3762.9,4.5411]
[1753915510841,1.2425,3763.0,3762.9,4.5411]
[1753915511137,1.868,3763.0,3762.9,4.5411]
[1753915514141,1.2425,3763.0,3762.9,4.5411]
[1753915514342,0.4984,3763.0,3762.9,4.5411]
[1753915514946,0.2924,3763.0,3762.9,4.5411]
[1753915515452,0.4984,3763.0,3762.9,4.5411]
[1753915515853,0.8051,3763.0,3762.9,4.5411]
[1753915516046,1.621,3763.0,3762.9,4.5411]
[1753915516251,1.868,3763.0,3762.9,4.5411]
[1753915518448,1.4895,3763.0,3762.9,4.5411]
[1753915518653,1.2425,3763.0,3762.9,4.5411]
[1753915521460,1.868,3763.0,3762.9,4.5411]
[1753915529063,1.868,3763.0,3762.9,3.2078]
[1753915530368,1.2425,3763.0,3762.9,3.2078]
[1753915532069,1.2425,3763.0,3762.9,3.6498]
[1753915532763,1.2425,3763.0,3762.9,3.9507]
[1753915532970,0.4984,3763.0,3762.9,3.9507]
[1753915534067,0.2924,3763.0,3762.9,4.88301998]
[1753915534469,0.2924,3763.0,3762.9,3.9507]
[1753915534671,0.4844,3763.0,3762.9,3.9507]
[1753915535168,1.2335,3763.0,3762.9,3.9507]
[1753915536374,1.8368,3763.0,3762.9,4.5524]
[1753915537375,1.2335,3763.0,3762.9,4.5524]
[1753915538178,0.4844,3763.0,3762.9,3.8095]
[1753915538474,0.4844,3763.0,3762.9,4.5524]
[1753915541477,0.4844,3763.0,3762.9,4.1811]
[1753915541776,0.9376,3763.0,3762.9,4.5524]
[1753915542878,0.4844,3763.0,3762.9,4.5524]
[1753915543074,1.1907,3763.9,3763.8,0.5313]
[1753915543280,2.35594582,3763.9,3763.8,1.3446]
[1753915543577,2.66054582,3763.9,3763.8,1.3446]
[1753915544773,1.60404582,3763.9,3763.8,1.3446]
[1753915544975,1.2457,3763.9,3763.8,1.3446]
[1753915545181,1.5994,3763.9,3763.8,1.3446]
[1753915545684,1.849,3763.9,3763.8,1.3446]
[1753915547279,0.3046,3763.9,3763.8,1.87597]
[1753915547678,0.4966,3763.9,3763.8,1.3446]
[1753915548277,0.4966,3763.9,3763.7,0.53138]
[1753915548278,0.72331,3764.2,3763.9,0.8133]
[1753915548583,0.192,3764.2,3764.1,0.5313]
[1753915548783,1.1907,3764.2,3764.1,1.3446]
[1753915549082,1.849,3764.2,3764.1,1.3446]
[1753915551083,0.7925,3764.2,3764.1,1.87593]
[1753915551487,1.2457,3764.2,3764.1,1.3446]
[1753915552388,1.5994,3764.2,3764.1,1.3446]
[1753915553384,1.849,3764.2,3764.1,1.3446]
[1753915553788,1.849,3764.2,3764.1,1.87593]
[1753915554181,1.849,3764.2,3764.1,1.3446]
[1753915554785,0.7925,3764.2,3764.1,1.3446]
[1753915555083,0.3046,3764.2,3764.1,1.3446]
[1753915556086,0.4966,3764.2,3764.1,1.3446]
[1753915556687,0.3046,3764.2,3764.1,1.3446]
[1753915556889,0.8766,3764.7,3764.6,1.87586]
[1753915557185,0.38,3764.7,3764.6,1.87586]
[1753915557388,0.4532,3764.9,3764.5,3.2078]
[1753915557389,0.8501,3765.5,3765.4,0.5313]
[1753915557685,1.0421,3765.5,3765.4,1.3446]
[1753915557886,1.0421,3765.5,3765.4,1.87575]
[1753915558193,0.4966,3765.5,3765.4,2.80806998]
[1753915558390,0.4966,3765.5,3765.4,1.3446]
[1753915558791,0.3046,3765.5,3765.4,2.27691998]
[1753915559087,0.4982,3766.1,3766.0,1.06055]
[1753915559291,0.3023,3766.1,3766.0,4.60715]
[1753915559486,0.5065,3766.1,3766.0,4.60715]
[1753915559688,0.5065,3766.1,3766.0,5.06245]
[1753915560289,0.2042,3766.1,3766.0,4.26835]
[1753915560490,0.73518,3766.6,3766.0,4.26835]
[1753915560793,0.2042,3766.1,3766.0,3.7373]
[1753915560994,1.2393,3766.1,3766.0,4.5314]
[1753915562092,0.5065,3766.1,3766.0,4.5314]
[1753915562695,1.70627,3766.7,3766.6,0.5295]
[1753915562986,1.5228,3766.7,3766.6,1.3236]
[1753915563187,0.3023,3766.6,3766.1,0.3388]
[1753915563393,1.8251,3766.2,3766.1,1.3236]
[1753915566687,1.8251,3766.2,3766.1,1.85465]
[1753915566892,1.4776,3766.2,3766.1,2.78696998]
[1753915567088,1.2393,3766.2,3766.1,2.78696998]
[1753915567291,0.3023,3766.2,3766.1,2.78696998]
[1753915567486,0.2042,3766.6,3766.5,1.3236]
[1753915567692,0.2042,3766.6,3766.5,5.46371998]
[1753915567894,0.937,3766.6,3766.5,5.46371998]
[1753915568097,0.5065,3766.6,3766.5,5.46371998]
[1753915568401,1.084,3766.6,3766.2,3.2078]
[1753915568591,1.5228,3766.3,3766.2,3.8279]
[1753915568791,1.5228,3766.3,3766.2,4.5314]
[1753915568993,1.8251,3766.3,3766.2,4.5314]
[1753915569596,2.35612,3766.3,3766.2,4.5314]
[1753915569997,1.8251,3766.3,3766.2,4.5314]
[1753915570290,0.7448,3766.3,3766.2,4.5314]
[1753915570496,0.3023,3766.3,3766.2,4.5314]
[1753915570897,0.8005,3766.3,3766.2,4.5314]
[1753915571604,1.2393,3766.3,3766.2,4.5314]
[1753915571787,2.35612,3766.3,3766.2,4.0761]
[1753915571993,2.35612,3766.3,3766.2,3.2078]
[1753915572196,1.8251,3766.3,3766.2,3.7948]
[1753915572392,1.8251,3766.3,3766.2,4.0761]
[1753915572599,1.4776,3766.3,3766.2,4.5314]
[1753915572794,1.8251,3766.3,3766.2,4.5314]
[1753915575299,1.8251,3766.3,3766.2,3.2078]
[1753915575502,2.35616,3766.0,3765.8,3.2078]
[1753915575701,1.8251,3765.9,3765.8,3.2078]
[1753915577001,1.8251,3765.9,3765.8,3.7948]
[1753915577502,1.8251,3765.9,3765.8,4.2501]
[1753915577799,1.8251,3765.9,3765.8,5.06249]
[1753915578103,1.8251,3765.9,3765.8,4.5314]
[1753915578795,0.5065,3765.9,3765.8,5.46371998]
[1753915578995,0.3023,3765.9,3765.8,5.46371998]
[1753915579396,0.5065,3765.9,3765.8,5.46371998]
[1753915580895,0.3023,3765.9,3765.8,5.46371998]
[1753915581099,0.7448,3766.5,3765.9,0.7941]
[1753915581299,0.7448,3766.5,3766.4,1.3236]
[1753915581300,1.8251,3766.5,3766.4,1.3236]
[1753915583501,1.8251,3766.3,3766.2,3.5466]
[1753915583694,1.8251,3766.3,3766.2,3.2078]
[1753915584599,1.2393,3766.3,3766.2,4.5314]
[1753915584799,0.8005,3766.3,3766.2,4.5314]
[1753915585199,0.5065,3766.3,3766.2,4.5314]
[1753915586503,0.5065,3766.3,3765.4,1.32784]
[1753915586504,6.23461998,3766.3,3765.4,3.2078]
[1753915586796,0.5311,3765.8,3765.4,0.7203]
[1753915587001,0.5321,3765.8,3765.7,1.8024]
[1753915587301,0.001,3765.8,3765.7,1.8024]
[1753915588806,0.60032,3766.3,3766.2,0.7494]
[1753915589004,0.64222,3766.3,3766.2,1.8835]
[1753915589194,1.44947901,3766.3,3766.2,1.8835]
[1753915589505,1.44947901,3766.3,3766.2,1.4211]
[1753915589911,0.53106,3766.0,3765.9,0.3759]
[1753915590202,0.1112,3766.0,3765.9,1.8835]
[1753915590402,0.60034,3766.2,3766.1,0.7494]
[1753915590608,0.1112,3766.2,3766.1,1.8835]
[1753915591698,0.91926094,3766.2,3766.1,1.8835]
[1753915592703,0.91926094,3766.2,3766.1,1.4211]
[1753915593905,0.91926094,3766.2,3766.1,1.8835]
[1753915594106,0.1112,3766.2,3766.1,1.8835]
[1753915595102,0.91936682,3766.2,3766.1,1.8835]
[1753915595305,0.1112,3765.9,3765.8,2.11878]
[1753915595609,0.91898592,3765.9,3765.8,2.11878]
[1753915595807,0.87708592,3765.9,3765.8,2.41458]
[1753915596008,0.81008592,3765.9,3765.8,2.41458]
[1753915596206,0.0023,3765.9,3765.8,1.8835]
[1753915596406,0.0693,3765.6,3765.5,0.573]
[1753915596601,0.1112,3765.6,3765.5,1.5877]
[1753915596813,0.57298,3765.9,3765.5,0.7494]
[1753915597112,0.64228,3765.9,3765.8,1.8835]
[1753915597497,0.53114,3765.5,3765.3,0.3759]
[1753915597704,0.64234,3765.5,3765.4,0.2958]
[1753915598210,0.1112,3765.2,3765.1,0.8688]
[1753915598398,0.64237,3765.2,3765.1,1.4211]
[1753915598599,0.64237,3765.2,3765.1,1.8835]
[1753915599110,0.1112,3765.2,3765.1,1.8835]
[1753915601306,0.64237,3765.2,3765.1,1.8835]
[1753915602115,0.1112,3765.2,3765.1,1.8835]
[1753915603711,0.067,3764.9,3764.8,0.3759]
[1753915603916,0.1112,3764.9,3764.8,0.6717]
[1753915604212,0.64242,3764.9,3764.8,0.8688]
[1753915604404,0.1112,3764.9,3764.8,0.8688]
[1753915604606,0.1112,3764.9,3764.8,1.8835]
[1753915607615,0.1112,3764.9,3764.8,2.41473]
[1753915608615,0.0693,3764.7,3764.6,3.2078]
[1753915608920,0.0681,3765.0,3764.9,0.7494]
[1753915609313,3.2078,3765.2,3764.9,1.2806]
[1753915609510,3.2078,3765.2,3765.1,2.03879]
[1753915609719,3.9444,3766.1,3765.7,0.9935]
[1753915609912,0.9338,3766.1,3766.0,1.8835]
[1753915610222,1.1877,3766.2,3766.1,1.8835]
[1753915610412,1.29911998,3766.8,3766.2,0.4624]
[1753915610718,0.80625269,3766.7,3766.6,1.8835]
[1753915611119,0.7366,3767.1,3767.0,0.7494]
[1753915611420,1.5428561,3767.1,3767.0,1.8835]
[1753915611813,5.5685561,3767.1,3767.0,1.8835]
[1753915613912,0.53097,3766.7,3766.3,3.2078]
[1753915614113,2.03571998,3766.4,3766.3,4.7154]
[1753915614319,2.84215507,3766.4,3766.3,5.0913]
[1753915614519,0.80643509,3766.4,3766.3,1.8835]
[1753915614727,2.08547,3766.7,3766.6,1.8835]
[1753915614927,2.89193296,3766.7,3766.6,1.8835]
[1753915615223,0.80646296,3766.7,3766.6,1.8835]
[1753915616927,0.80646296,3766.7,3766.6,2.81581998]
[1753915618520,3.2078,3767.1,3767.0,1.8835]
[1753915618722,4.01436106,3767.1,3767.0,1.8835]
[1753915619225,0.2831,3766.7,3766.6,0.83968]
[1753915619425,1.5351,3766.7,3766.6,1.8485]
[1753915619723,0.808,3767.0,3766.6,1.8485]
[1753915619918,0.444,3767.1,3767.0,1.8485]
[1753915620120,0.53088,3767.3,3767.0,0.7527]
[1753915620328,0.2006,3767.2,3767.1,0.4969]
[1753915620625,0.444,3767.2,3767.1,1.8485]
[1753915620925,1.5351,3767.2,3767.1,1.8485]
[1753915621717,2.25951998,3767.3,3766.6,0.8142]
[1753915621923,1.5351,3766.7,3766.6,1.5669]
[1753915622231,2.06606,3766.7,3766.4,3.2078]
[1753915622427,1.8425,3766.4,3766.3,0.2816]
[1753915622629,1.1657,3766.7,3766.6,0.4969]
[1753915622819,1.5351,3766.7,3766.6,1.8485]
[1753915623714,2.06606,3766.7,3766.6,1.8485]
[1753915623929,1.5351,3766.7,3766.6,1.8485]
[1753915624328,1.8425,3766.7,3766.6,1.8485]
[1753915627130,1.8425,3766.7,3766.6,1.0343]
[1753915627533,1.8425,3766.7,3766.6,0.2816]
[1753915628228,0.7271,3766.1,3766.0,3.9605]
[1753915628435,2.77481998,3766.1,3766.0,4.2421]
[1753915628635,2.77481998,3766.1,3766.0,5.0563]
[1753915628636,2.46741998,3766.1,3766.0,5.0563]
[1753915629526,2.46741998,3766.1,3766.0,4.6734]
[1753915629733,2.77481998,3766.1,3766.0,5.0563]
[1753915630832,0.808,3765.9,3765.5,3.73892]
[1753915631131,1.5351,3765.6,3765.5,5.58742]
[1753915631528,1.1657,3765.6,3765.5,5.58742]
[1753915632131,0.53109,3765.8,3765.5,3.2078]
[1753915632336,1.8425,3765.6,3765.5,3.2078]
[1753915632634,1.5351,3765.2,3765.1,4.7747]
[1753915632837,1.1657,3765.2,3765.1,5.30589]
[1753915633029,1.25821,3765.7,3765.6,0.1882]
[1753915633228,1.56561,3765.7,3765.6,0.4698]
[1753915633636,2.37361,3765.7,3765.6,0.4698]
[1753915634529,2.37361,3765.7,3765.6,1.8485]
[1753915635531,2.37361,3765.7,3765.6,1.0343]
[1753915637140,2.37361,3765.7,3765.6,1.8485]
[1753915638139,1.5351,3765.7,3765.6,1.8485]
[1753915641135,1.25817,3766.0,3765.9,0.7527]
[1753915641341,2.06617,3766.0,3765.9,1.8485]
[1753915644139,2.37357,3766.0,3765.9,1.8485]
[1753915645043,2.37357,3766.0,3765.9,1.0343]
[1753915645935,0.53109,3765.8,3765.7,0.2816]
[1753915646141,3.30590998,3765.8,3765.7,0.6645]
[1753915646342,3.30590998,3765.8,3765.7,1.4172]
[1753915646641,3.30590998,3765.8,3765.7,1.8485]
[1753915647238,2.37363,3765.5,3765.4,1.8485]
[1753915647435,3.30594998,3765.5,3765.4,1.8485]
[1753915648243,2.37367,3765.2,3765.1,3.2078]
[1753915648434,3.30598998,3765.2,3765.1,3.4894]
[1753915648835,3.30598998,3765.2,3765.1,4.0314]
[1753915649435,3.30598998,3765.2,3765.1,4.5749]
[1753915649836,3.30598998,3765.2,3765.1,5.0215]
[1753915650239,3.30598998,3765.2,3765.1,1.8137]
[1753915653346,2.99858998,3765.2,3765.1,1.8137]
[1753915653535,0.53117,3765.2,3765.1,1.8137]
[1753915653740,19.8684,3765.9,3765.8,0.7391]
[1753915653942,20.67548542,3765.9,3765.8,1.8263]
[1753915654646,21.20655542,3765.9,3765.8,1.8263]
[1753915656749,21.51705542,3765.9,3765.8,1.8263]
[1753915658345,2.08557,3765.2,3765.1,3.6975]
[1753915658646,3.32838998,3765.2,3765.1,0.4897]
[1753915658848,3.32838998,3765.2,3765.1,1.3797]
[1753915659050,3.32838998,3765.2,3765.1,1.8263]
[1753915659247,3.01788998,3765.2,3765.1,1.8263]
[1753915661549,0.6296,3765.2,3765.1,1.8263]
[1753915661751,0.53117,3765.3,3765.2,1.8263]
[1753915661944,0.53115,3765.4,3765.2,1.8263]
[1753915662251,19.77416,3766.0,3765.9,1.8263]
[1753915662551,20.82389375,3766.0,3765.9,1.8263]
[1753915663552,21.19529375,3766.0,3765.9,1.8263]
[1753915664053,20.38746,3766.0,3765.9,1.8263]
[1753915668959,20.01606,3766.0,3765.9,1.8263]
[1753915669151,0.53106,3766.0,3765.9,1.8263]
[1753915669652,18.289,3766.1,3766.0,0.53106]
[1753915669957,18.289,3766.1,3766.0,2.35736]
[1753915670454,18.289,3766.1,3766.0,1.8263]
[1753915670857,3.2078,3766.5,3766.4,1.4725]
[1753915671052,24.39083018,3766.5,3766.4,1.8263]
[1753915671358,23.58319,3766.5,3766.4,1.8263]
[1753915673055,21.4978,3766.5,3766.4,1.8263]
[1753915673260,22.02879,3766.5,3766.4,1.8263]
[1753915673758,22.03372727,3766.5,3766.4,1.8263]
[1753915673962,3.74372727,3766.5,3766.4,1.8263]
[1753915674362,4.37332727,3766.5,3766.4,1.8263]
[1753915675059,4.61522727,3766.5,3766.4,1.8263]
[1753915675260,5.29812727,3766.5,3766.4,1.8263]
[1753915675456,0.53106,3766.0,3765.9,1.8263]
[1753915675662,1.40256,3766.0,3765.9,1.8263]
[1753915675861,1.71406,3766.0,3765.9,1.3797]